[Event "Late-Titled-Tuesday-Blitz-January-23-2024"]
[Site "Chess.com"]
[Date "2024.01.23"]
[Round "1"]
[White "CM_rui"]
[Black "kai_nov"]
[Result "1-0"]
[WhiteElo "2604"]
[BlackElo "2293"]
[TimeControl "180+1"]
[EndTime "14:05:48 PST"]
[Termination "CM_rui won on time"]

1. e4 {[%clk 0:02:56.3]} 1... c5 {[%clk 0:02:58.2]} 2. Nf3 {[%clk 0:02:57]} 2...
Nc6 {[%clk 0:02:57.8]} 3. c3 {[%clk 0:02:56.3]} 3... Nf6 {[%clk 0:02:56.9]} 4.
e5 {[%clk 0:02:56.6]} 4... Nd5 {[%clk 0:02:57.1]} 5. d4 {[%clk 0:02:57.3]} 5...
cxd4 {[%clk 0:02:58]} 6. cxd4 {[%clk 0:02:58]} 6... d6 {[%clk 0:02:58.4]} 7. Bc4
{[%clk 0:02:58.4]} 7... dxe5 {[%clk 0:02:56.6]} 8. dxe5 {[%clk 0:02:58]} 8...
Ndb4 {[%clk 0:02:56.6]} 9. Qb3 {[%clk 0:02:51.2]} 9... e6 {[%clk 0:02:46.7]} 10.
Bg5 {[%clk 0:02:43.7]} 10... Qb6 {[%clk 0:02:36]} 11. Nc3 {[%clk 0:02:23.9]}
11... Na5 {[%clk 0:01:10.3]} 12. Bb5+ {[%clk 0:02:24]} 12... Nbc6 {[%clk
0:00:29.9]} 13. Qc2 {[%clk 0:02:19.8]} 13... a6 {[%clk 0:00:26.8]} 14. Ba4
{[%clk 0:02:17.8]} 14... Bc5 {[%clk 0:00:20.4]} 15. O-O {[%clk 0:02:00.3]} 15...
O-O {[%clk 0:00:20]} 16. Ne4 {[%clk 0:02:00.6]} 16... Bd4 {[%clk 0:00:15.1]} 17.
Nf6+ {[%clk 0:01:45.5]} 17... gxf6 {[%clk 0:00:13.8]} 18. Bxf6 {[%clk
0:01:46.4]} 18... Nxe5 {[%clk 0:00:05.7]} 19. Nxe5 {[%clk 0:01:31.4]} 19... Bxe5
{[%clk 0:00:06.6]} 20. Bxe5 {[%clk 0:01:31.8]} 20... f6 {[%clk 0:00:06.9]} 21.
Bc3 {[%clk 0:01:26.1]} 21... Nc6 {[%clk 0:00:05.5]} 22. Qe4 {[%clk 0:01:23.5]}
22... Bd7 {[%clk 0:00:03.9]} 23. Bc2 {[%clk 0:01:23.3]} 23... Rf7 {[%clk
0:00:03.3]} 24. Bxf6 {[%clk 0:01:19.3]} 1-0

[Event "Late-Titled-Tuesday-Blitz-January-23-2024"]
[Site "Chess.com"]
[Date "2024.01.23"]
[Round "1"]
[White "campochess"]
[Black "Chessdreamer2020"]
[Result "0-1"]
[WhiteElo "2091"]
[BlackElo "2554"]
[TimeControl "180+1"]
[EndTime "14:05:49 PST"]
[Termination "Chessdreamer2020 won by resignation"]

1. d4 {[%clk 0:02:58]} 1... d6 {[%clk 0:02:59.6]} 2. e4 {[%clk 0:02:57]} 2...
Nf6 {[%clk 0:02:59.5]} 3. Nc3 {[%clk 0:02:56.9]} 3... c6 {[%clk 0:03:00]} 4. f3
{[%clk 0:02:55.5]} 4... d5 {[%clk 0:02:58.7]} 5. Bg5 {[%clk 0:02:52.7]} 5... h6
{[%clk 0:02:56.2]} 6. Bxf6 {[%clk 0:02:52.4]} 6... exf6 {[%clk 0:02:57.1]} 7.
exd5 {[%clk 0:02:52.2]} 7... cxd5 {[%clk 0:02:58]} 8. a3 {[%clk 0:02:50.4]} 8...
Nc6 {[%clk 0:02:58.1]} 9. Bb5 {[%clk 0:02:48.1]} 9... Be7 {[%clk 0:02:55.1]} 10.
Nge2 {[%clk 0:02:48.1]} 10... O-O {[%clk 0:02:55.4]} 11. O-O {[%clk 0:02:46.9]}
11... a6 {[%clk 0:02:53.7]} 12. Bd3 {[%clk 0:02:43.1]} 12... Bd6 {[%clk
0:02:50.5]} 13. Qe1 {[%clk 0:02:41.4]} 13... Be6 {[%clk 0:02:46.6]} 14. Qh4
{[%clk 0:02:40.3]} 14... Qc7 {[%clk 0:02:46.6]} 15. Rae1 {[%clk 0:02:31.7]}
15... Rfe8 {[%clk 0:02:46.2]} 16. Ng3 {[%clk 0:02:29.3]} 16... Ne7 {[%clk
0:02:43.8]} 17. Re2 {[%clk 0:02:22.6]} 17... Qb6 {[%clk 0:02:36.6]} 18. b4
{[%clk 0:02:10.8]} 18... a5 {[%clk 0:02:36]} 19. Na4 {[%clk 0:02:08.5]} 19...
Qc7 {[%clk 0:02:29]} 20. Nc5 {[%clk 0:02:08.2]} 20... Bd7 {[%clk 0:02:05.8]} 21.
Rfe1 {[%clk 0:02:04.9]} 21... axb4 {[%clk 0:02:03.6]} 22. axb4 {[%clk
0:02:03.4]} 22... b6 {[%clk 0:02:01.4]} 23. Nxd7 {[%clk 0:02:00.1]} 23... Qxd7
{[%clk 0:02:02.3]} 24. Nh5 {[%clk 0:01:52.7]} 24... Ng6 {[%clk 0:01:41.5]} 25.
Rxe8+ {[%clk 0:01:49.6]} 25... Rxe8 {[%clk 0:01:41]} 26. Rxe8+ {[%clk 0:01:48]}
26... Qxe8 {[%clk 0:01:41.9]} 27. Qf2 {[%clk 0:01:40.8]} 27... Bxb4 {[%clk
0:01:39.7]} 28. Bxg6 {[%clk 0:01:35.7]} 28... fxg6 {[%clk 0:01:39.2]} 29. Nf4
{[%clk 0:01:35.3]} 29... Bc3 {[%clk 0:01:22.8]} 30. Kf1 {[%clk 0:01:30.5]} 30...
Qb5+ {[%clk 0:01:20.1]} 31. Qe2 {[%clk 0:01:17.7]} 31... Qb1+ {[%clk 0:01:19.4]}
32. Kf2 {[%clk 0:01:17.9]} 32... Bxd4+ {[%clk 0:01:19.8]} 33. Kg3 {[%clk
0:01:17.9]} 33... Be5 {[%clk 0:01:19.2]} 34. Kg4 {[%clk 0:01:14.1]} 34... h5+
{[%clk 0:01:16.5]} 35. Nxh5 {[%clk 0:01:08.6]} 35... gxh5+ {[%clk 0:01:16.2]}
36. Kxh5 {[%clk 0:01:08.5]} 36... Qc1 {[%clk 0:01:15.8]} 37. h4 {[%clk
0:00:54.4]} 37... Qh6+ {[%clk 0:01:07.9]} 38. Kg4 {[%clk 0:00:54.1]} 38... Qg6+
{[%clk 0:01:08.5]} 0-1

[Event "Late-Titled-Tuesday-Blitz-January-23-2024"]
[Site "Chess.com"]
[Date "2024.01.23"]
[Round "1"]
[White "GMHess"]
[Black "m_ezat"]
[Result "1-0"]
[WhiteElo "2809"]
[BlackElo "2450"]
[TimeControl "180+1"]
[EndTime "14:05:51 PST"]
[Termination "GMHess won by resignation"]

1. b3 {[%clk 0:02:59.7]} 1... d6 {[%clk 0:02:53.2]} 2. Bb2 {[%clk 0:03:00.3]}
2... Nf6 {[%clk 0:02:52.3]} 3. h3 {[%clk 0:03:00.2]} 3... e5 {[%clk 0:02:50.3]}
4. e3 {[%clk 0:03:00.6]} 4... g6 {[%clk 0:02:49.4]} 5. Ne2 {[%clk 0:03:01.1]}
5... Bg7 {[%clk 0:02:48.3]} 6. d3 {[%clk 0:03:00]} 6... O-O {[%clk 0:02:46.4]}
7. Nd2 {[%clk 0:03:00.1]} 7... Nc6 {[%clk 0:02:47]} 8. g4 {[%clk 0:03:00.1]}
8... a5 {[%clk 0:02:47]} 9. a3 {[%clk 0:03:00.1]} 9... d5 {[%clk 0:02:44.8]} 10.
Bg2 {[%clk 0:03:00]} 10... Re8 {[%clk 0:02:41.2]} 11. Ng3 {[%clk 0:02:59.6]}
11... Be6 {[%clk 0:02:35.2]} 12. Qe2 {[%clk 0:02:57]} 12... Rb8 {[%clk
0:02:32.6]} 13. Nf3 {[%clk 0:02:49.7]} 13... Nd7 {[%clk 0:02:29.2]} 14. e4
{[%clk 0:02:48.7]} 14... Nc5 {[%clk 0:02:16.1]} 15. O-O {[%clk 0:02:42]} 15...
b5 {[%clk 0:02:07.6]} 16. Rae1 {[%clk 0:02:33.7]} 16... Qd7 {[%clk 0:02:05.6]}
17. Ng5 {[%clk 0:02:31.7]} 17... Nd4 {[%clk 0:01:55.3]} 18. Qd1 {[%clk
0:02:32.1]} 18... dxe4 {[%clk 0:01:53.8]} 19. Nxe6 {[%clk 0:02:22.3]} 19...
Ncxe6 {[%clk 0:01:52.2]} 20. Rxe4 {[%clk 0:02:16.6]} 20... c5 {[%clk 0:01:41.3]}
21. Rfe1 {[%clk 0:01:59.8]} 21... Rbc8 {[%clk 0:01:37.1]} 22. c3 {[%clk
0:01:50.8]} 22... Nc6 {[%clk 0:01:36]} 23. c4 {[%clk 0:01:51.4]} 23... Ncd4
{[%clk 0:01:34.3]} 24. Ne2 {[%clk 0:01:40]} 24... Nxe2+ {[%clk 0:01:31.7]} 25.
R4xe2 {[%clk 0:01:37.8]} 25... Nf4 {[%clk 0:01:30.4]} 26. Re3 {[%clk 0:01:37.8]}
26... Rcd8 {[%clk 0:01:23.2]} 27. Bxe5 {[%clk 0:01:25]} 27... Nxd3 {[%clk
0:01:10.1]} 28. Bxg7 {[%clk 0:01:24.9]} 28... Nxe1 {[%clk 0:01:09.6]} 29. Qxd7
{[%clk 0:01:24]} 29... Rxd7 {[%clk 0:01:01.2]} 30. Rxe8+ {[%clk 0:01:24.1]}
30... Kxg7 {[%clk 0:01:02.1]} 31. Rxe1 {[%clk 0:01:24.5]} 31... a4 {[%clk
0:01:02]} 32. bxa4 {[%clk 0:01:19.8]} 32... bxa4 {[%clk 0:01:00.1]} 33. Bc6
{[%clk 0:01:18.3]} 33... Rd3 {[%clk 0:00:59.2]} 34. Re3 {[%clk 0:01:19]} 34...
Rd4 {[%clk 0:00:55.5]} 35. Rc3 {[%clk 0:01:18.2]} 35... Kf6 {[%clk 0:00:52.4]}
36. Bxa4 {[%clk 0:01:18.3]} 36... Ke5 {[%clk 0:00:52.5]} 37. Bc6 {[%clk
0:01:18.2]} 37... Kf4 {[%clk 0:00:52.6]} 38. Rf3+ {[%clk 0:01:17.5]} 38... Kg5
{[%clk 0:00:52]} 39. Bd5 {[%clk 0:01:16.6]} 39... f5 {[%clk 0:00:50.9]} 40. gxf5
{[%clk 0:01:17.2]} 40... gxf5 {[%clk 0:00:51.7]} 41. Kg2 {[%clk 0:01:18.1]}
41... f4 {[%clk 0:00:51.4]} 42. a4 {[%clk 0:01:18.3]} 42... Rd2 {[%clk
0:00:50.4]} 43. Ra3 {[%clk 0:01:18.7]} 1-0

[Event "Late-Titled-Tuesday-Blitz-January-23-2024"]
[Site "Chess.com"]
[Date "2024.01.23"]
[Round "1"]
[White "Pawngobblerx2000"]
[Black "jjbolanos"]
[Result "1-0"]
[WhiteElo "2558"]
[BlackElo "2108"]
[TimeControl "180+1"]
[EndTime "14:05:56 PST"]
[Termination "Pawngobblerx2000 won by resignation"]

1. c4 {[%clk 0:03:00.9]} 1... Nf6 {[%clk 0:02:58.7]} 2. g3 {[%clk 0:03:01.4]}
2... e6 {[%clk 0:02:58.9]} 3. Bg2 {[%clk 0:03:01.7]} 3... d5 {[%clk 0:02:59.6]}
4. Nf3 {[%clk 0:03:02.6]} 4... Be7 {[%clk 0:03:00.2]} 5. O-O {[%clk 0:03:03.2]}
5... O-O {[%clk 0:03:00.9]} 6. d4 {[%clk 0:03:03.7]} 6... dxc4 {[%clk
0:03:01.5]} 7. Qc2 {[%clk 0:03:03]} 7... a6 {[%clk 0:03:01.6]} 8. a4 {[%clk
0:03:02.9]} 8... Bd7 {[%clk 0:03:02.2]} 9. Ne5 {[%clk 0:03:02.3]} 9... Bc6
{[%clk 0:02:55.7]} 10. Nxc6 {[%clk 0:03:02.3]} 10... Nxc6 {[%clk 0:02:56.3]} 11.
e3 {[%clk 0:03:02.5]} 11... Na5 {[%clk 0:02:20.8]} 12. Nd2 {[%clk 0:03:02]}
12... Rb8 {[%clk 0:01:52]} 13. Nxc4 {[%clk 0:02:56.1]} 13... Nxc4 {[%clk
0:01:52.9]} 14. Qxc4 {[%clk 0:02:56.8]} 14... b5 {[%clk 0:01:53.5]} 15. Qe2
{[%clk 0:02:49.4]} 15... c5 {[%clk 0:01:47]} 16. axb5 {[%clk 0:02:36.9]} 16...
axb5 {[%clk 0:01:46.7]} 17. dxc5 {[%clk 0:02:36.2]} 17... Bxc5 {[%clk
0:01:47.6]} 18. Rd1 {[%clk 0:02:34.5]} 18... Qb6 {[%clk 0:01:34.6]} 19. Bd2
{[%clk 0:02:29]} 19... Rfd8 {[%clk 0:01:10]} 20. Rdc1 {[%clk 0:02:26.6]} 20...
b4 {[%clk 0:00:53.4]} 21. Be1 {[%clk 0:02:22.4]} 21... g6 {[%clk 0:00:47.9]} 22.
Ra6 {[%clk 0:02:21.1]} 22... Qb5 {[%clk 0:00:48.2]} 23. Qxb5 {[%clk 0:02:14.1]}
23... Rxb5 {[%clk 0:00:49.1]} 24. Bf1 {[%clk 0:02:14.3]} 24... Rb6 {[%clk
0:00:22.2]} 25. Rxc5 {[%clk 0:02:10.9]} 25... Rxa6 {[%clk 0:00:22.9]} 26. Bxa6
{[%clk 0:02:10.4]} 26... Rd1 {[%clk 0:00:22.7]} 27. Kf1 {[%clk 0:02:10.5]} 27...
Ne4 {[%clk 0:00:23.3]} 28. Rc8+ {[%clk 0:02:08.1]} 28... Kg7 {[%clk 0:00:23.3]}
29. Ke2 {[%clk 0:02:07.1]} 29... Rb1 {[%clk 0:00:22.5]} 30. Rb8 {[%clk
0:01:42.1]} 30... Rxb2+ {[%clk 0:00:22]} 31. Kf1 {[%clk 0:01:37.9]} 31... b3
{[%clk 0:00:17.9]} 32. Bd3 {[%clk 0:01:33]} 32... Nxf2 {[%clk 0:00:07.9]} 33.
Bc3+ {[%clk 0:01:32.2]} 33... Kh6 {[%clk 0:00:07.9]} 34. Bxb2 {[%clk 0:01:33.1]}
34... Nxd3 {[%clk 0:00:08.2]} 35. Rxb3 {[%clk 0:01:32.7]} 1-0

[Event "Late-Titled-Tuesday-Blitz-January-23-2024"]
[Site "Chess.com"]
[Date "2024.01.23"]
[Round "1"]
[White "vladislavkovalev"]
[Black "Herman-NY"]
[Result "1-0"]
[WhiteElo "2871"]
[BlackElo "2473"]
[TimeControl "180+1"]
[EndTime "14:05:59 PST"]
[Termination "vladislavkovalev won on time"]

1. e4 {[%clk 0:02:58.7]} 1... e5 {[%clk 0:03:00.1]} 2. Nf3 {[%clk 0:02:58.7]}
2... Nc6 {[%clk 0:03:00.7]} 3. Bb5 {[%clk 0:02:59.3]} 3... a6 {[%clk 0:02:57.7]}
4. Ba4 {[%clk 0:02:59.7]} 4... Nf6 {[%clk 0:02:57.7]} 5. O-O {[%clk 0:03:00.2]}
5... Be7 {[%clk 0:02:57.8]} 6. d3 {[%clk 0:03:00.3]} 6... b5 {[%clk 0:02:50.6]}
7. Bb3 {[%clk 0:03:00.2]} 7... O-O {[%clk 0:02:50.8]} 8. Nc3 {[%clk 0:03:00.4]}
8... d6 {[%clk 0:02:49.4]} 9. a3 {[%clk 0:03:00.9]} 9... h6 {[%clk 0:02:45.2]}
10. h3 {[%clk 0:02:59.8]} 10... Na5 {[%clk 0:02:37.9]} 11. Ba2 {[%clk
0:03:00.1]} 11... c5 {[%clk 0:02:38.6]} 12. b4 {[%clk 0:02:49.5]} 12... Nc6
{[%clk 0:02:34]} 13. Nd5 {[%clk 0:02:49.9]} 13... Be6 {[%clk 0:02:29.7]} 14. c3
{[%clk 0:02:44.8]} 14... Re8 {[%clk 0:02:11.6]} 15. Be3 {[%clk 0:02:41]} 15...
Bf8 {[%clk 0:02:11.9]} 16. Re1 {[%clk 0:02:36]} 16... Rc8 {[%clk 0:02:07.3]} 17.
Qd2 {[%clk 0:02:31.5]} 17... Bxd5 {[%clk 0:01:38.6]} 18. exd5 {[%clk 0:02:30.7]}
18... Ne7 {[%clk 0:01:38.4]} 19. c4 {[%clk 0:02:28.4]} 19... Nf5 {[%clk
0:01:12.9]} 20. Re2 {[%clk 0:02:07.1]} 20... g6 {[%clk 0:00:38.8]} 21. Rae1
{[%clk 0:02:06.3]} 21... Bg7 {[%clk 0:00:33.5]} 22. Qd1 {[%clk 0:01:56.8]} 22...
cxb4 {[%clk 0:00:15.7]} 23. axb4 {[%clk 0:01:56.4]} 23... Nxe3 {[%clk
0:00:16.1]} 24. Rxe3 {[%clk 0:01:56.5]} 24... a5 {[%clk 0:00:12.4]} 25. cxb5
{[%clk 0:01:55.3]} 25... axb4 {[%clk 0:00:12.1]} 26. Bc4 {[%clk 0:01:56]} 26...
Qb6 {[%clk 0:00:10.1]} 27. Qb3 {[%clk 0:01:56.1]} 27... Qc5 {[%clk 0:00:08.8]}
28. Rb1 {[%clk 0:01:49.5]} 28... e4 {[%clk 0:00:09.2]} 29. Nd2 {[%clk
0:01:44.5]} 29... exd3 {[%clk 0:00:08.9]} 30. Rxe8+ {[%clk 0:01:41.1]} 30...
Rxe8 {[%clk 0:00:09]} 31. Qxb4 {[%clk 0:01:41.7]} 31... Qd4 {[%clk 0:00:07]} 32.
Nf3 {[%clk 0:01:29.3]} 32... Qf4 {[%clk 0:00:04.3]} 33. b6 {[%clk 0:01:26.5]}
33... Ne4 {[%clk 0:00:02.9]} 34. Bxd3 {[%clk 0:01:24.1]} 1-0

[Event "Late-Titled-Tuesday-Blitz-January-23-2024"]
[Site "Chess.com"]
[Date "2024.01.23"]
[Round "1"]
[White "Yeritsyaan"]
[Black "FredddieCroderg"]
[Result "0-1"]
[WhiteElo "2624"]
[BlackElo "2348"]
[TimeControl "180+1"]
[EndTime "14:06:04 PST"]
[Termination "FredddieCroderg won by resignation"]

1. Nf3 {[%clk 0:02:57.3]} 1... d5 {[%clk 0:02:55.9]} 2. e3 {[%clk 0:02:56.1]}
2... e6 {[%clk 0:02:55]} 3. c4 {[%clk 0:02:56.3]} 3... Nf6 {[%clk 0:02:53.6]} 4.
d4 {[%clk 0:02:55.5]} 4... Be7 {[%clk 0:02:50.2]} 5. Be2 {[%clk 0:02:54.3]} 5...
O-O {[%clk 0:02:49.8]} 6. O-O {[%clk 0:02:53.5]} 6... c5 {[%clk 0:02:49.8]} 7.
cxd5 {[%clk 0:02:52.8]} 7... exd5 {[%clk 0:02:48.8]} 8. b3 {[%clk 0:02:52.6]}
8... cxd4 {[%clk 0:02:47.3]} 9. Nxd4 {[%clk 0:02:52.1]} 9... Nc6 {[%clk
0:02:46.9]} 10. Bb2 {[%clk 0:02:52.3]} 10... Re8 {[%clk 0:02:44.8]} 11. a3
{[%clk 0:02:51.5]} 11... Ne4 {[%clk 0:02:41.8]} 12. Nd2 {[%clk 0:02:51.2]} 12...
Bf6 {[%clk 0:02:39.4]} 13. Nxe4 {[%clk 0:02:50.5]} 13... Rxe4 {[%clk 0:02:29.6]}
14. Bf3 {[%clk 0:02:49.1]} 14... Rh4 {[%clk 0:02:09.3]} 15. g3 {[%clk
0:02:34.8]} 15... Nxd4 {[%clk 0:02:00.5]} 16. Bxd4 {[%clk 0:02:24.2]} 16... Bxd4
{[%clk 0:01:53.2]} 17. exd4 {[%clk 0:02:25.1]} 17... Rh6 {[%clk 0:01:48.1]} 18.
Qd3 {[%clk 0:02:21.5]} 18... Bh3 {[%clk 0:01:45]} 19. Rfe1 {[%clk 0:02:18.2]}
19... Qd7 {[%clk 0:01:44.7]} 20. Rac1 {[%clk 0:02:11.7]} 20... Bf5 {[%clk
0:01:43.2]} 21. Qd2 {[%clk 0:02:09.2]} 21... Be4 {[%clk 0:01:39.5]} 22. Bxe4
{[%clk 0:02:00.8]} 22... dxe4 {[%clk 0:01:39.5]} 23. Rxe4 {[%clk 0:02:01.4]}
23... Qh3 {[%clk 0:01:39.2]} 24. f4 {[%clk 0:01:55]} 24... Rg6 {[%clk 0:01:35]}
25. Qe3 {[%clk 0:01:50.5]} 25... h5 {[%clk 0:01:32.9]} 26. Rc5 {[%clk
0:01:44.6]} 26... b6 {[%clk 0:01:14.8]} 27. Re8+ {[%clk 0:01:31.1]} 27... Kh7
{[%clk 0:01:08.3]} 28. Rxa8 {[%clk 0:01:25.5]} 28... bxc5 {[%clk 0:01:08.2]} 29.
dxc5 {[%clk 0:01:22.5]} 29... Re6 {[%clk 0:01:06.9]} 30. Qd3+ {[%clk 0:01:21.8]}
30... g6 {[%clk 0:01:06.8]} 31. Qc3 {[%clk 0:01:18.7]} 31... f6 {[%clk
0:01:02.6]} 32. Rxa7+ {[%clk 0:01:18.6]} 32... Kh6 {[%clk 0:01:02]} 33. Rd7
{[%clk 0:01:13.1]} 33... Re2 {[%clk 0:00:57.4]} 34. Qf3 {[%clk 0:00:56.1]} 34...
Re1+ {[%clk 0:00:46.6]} 35. Kf2 {[%clk 0:00:56.1]} 35... Rf1+ {[%clk 0:00:46.2]}
36. Ke2 {[%clk 0:00:53.6]} 36... Rxf3 {[%clk 0:00:45.7]} 37. Kxf3 {[%clk
0:00:54.3]} 37... Qxd7 {[%clk 0:00:45.2]} 0-1

[Event "Late-Titled-Tuesday-Blitz-January-23-2024"]
[Site "Chess.com"]
[Date "2024.01.23"]
[Round "1"]
[White "thesupera12"]
[Black "mishanick"]
[Result "0-1"]
[WhiteElo "2532"]
[BlackElo "3061"]
[TimeControl "180+1"]
[EndTime "14:06:06 PST"]
[Termination "mishanick won by resignation"]

1. d4 {[%clk 0:02:59.7]} 1... Nf6 {[%clk 0:03:00.1]} 2. Bg5 {[%clk 0:02:58.5]}
2... d5 {[%clk 0:02:57.9]} 3. Bxf6 {[%clk 0:02:58.2]} 3... exf6 {[%clk
0:02:58.1]} 4. e3 {[%clk 0:02:59.1]} 4... c5 {[%clk 0:02:58.7]} 5. c4 {[%clk
0:02:52.5]} 5... dxc4 {[%clk 0:02:53]} 6. Nf3 {[%clk 0:02:49.8]} 6... cxd4
{[%clk 0:02:52.3]} 7. Nxd4 {[%clk 0:02:49.4]} 7... Bb4+ {[%clk 0:02:49.3]} 8.
Nc3 {[%clk 0:02:48.6]} 8... O-O {[%clk 0:02:48.8]} 9. Bxc4 {[%clk 0:02:47.8]}
9... Bxc3+ {[%clk 0:02:48]} 10. bxc3 {[%clk 0:02:47.6]} 10... Qc7 {[%clk
0:02:48.5]} 11. Qe2 {[%clk 0:02:45.3]} 11... Nd7 {[%clk 0:02:47.6]} 12. Rc1
{[%clk 0:02:38]} 12... Nc5 {[%clk 0:02:34.9]} 13. O-O {[%clk 0:02:35.7]} 13...
Bd7 {[%clk 0:02:35.5]} 14. Rfd1 {[%clk 0:02:32.7]} 14... Rfe8 {[%clk 0:02:35]}
15. Bb5 {[%clk 0:02:26.2]} 15... a6 {[%clk 0:02:28.3]} 16. Bxd7 {[%clk
0:02:24.7]} 16... Nxd7 {[%clk 0:02:29.2]} 17. h3 {[%clk 0:02:23.8]} 17... Rac8
{[%clk 0:02:28.3]} 18. c4 {[%clk 0:02:11.3]} 18... Re5 {[%clk 0:02:21.3]} 19.
Qb2 {[%clk 0:02:05.5]} 19... Rc5 {[%clk 0:02:17]} 20. Nb3 {[%clk 0:01:59.8]}
20... Rc6 {[%clk 0:02:17.1]} 21. Nd4 {[%clk 0:01:57.2]} 21... Rb6 {[%clk
0:02:14.7]} 22. Qa3 {[%clk 0:01:52.5]} 22... g6 {[%clk 0:02:13.4]} 23. Rb1
{[%clk 0:01:43.1]} 23... Ne5 {[%clk 0:02:01.3]} 24. c5 {[%clk 0:01:34.7]} 24...
Rxb1 {[%clk 0:02:01.1]} 25. Rxb1 {[%clk 0:01:35.3]} 25... Qxc5 {[%clk
0:01:40.5]} 26. Qxc5 {[%clk 0:01:34.2]} 26... Rxc5 {[%clk 0:01:41.4]} 27. Rxb7
{[%clk 0:01:34.2]} 27... Nd3 {[%clk 0:01:41.8]} 28. g4 {[%clk 0:01:21.6]} 28...
Rc1+ {[%clk 0:01:29]} 29. Kg2 {[%clk 0:01:20.9]} 29... Ra1 {[%clk 0:01:29.7]}
30. Rb3 {[%clk 0:01:14.7]} 30... Ne1+ {[%clk 0:01:28.1]} 31. Kg3 {[%clk
0:01:14.2]} 31... Rxa2 {[%clk 0:01:26.6]} 32. Rb6 {[%clk 0:01:14.2]} 32... Kg7
{[%clk 0:01:26.4]} 33. Rb7 {[%clk 0:01:14.4]} 33... Kf8 {[%clk 0:00:57.6]} 34.
Nc6 {[%clk 0:01:08.7]} 34... Nd3 {[%clk 0:00:53.2]} 35. f3 {[%clk 0:01:05.2]}
35... Ne1 {[%clk 0:00:42.2]} 36. Nd8 {[%clk 0:01:03.4]} 36... Rg2+ {[%clk
0:00:42]} 37. Kf4 {[%clk 0:01:03.2]} 37... Nd3+ {[%clk 0:00:42.4]} 38. Ke4
{[%clk 0:01:02.1]} 38... Nc5+ {[%clk 0:00:43.3]} 39. Kd5 {[%clk 0:01:01.7]}
39... Nxb7 {[%clk 0:00:44.2]} 40. Nxb7 {[%clk 0:01:01.9]} 40... Rb2 {[%clk
0:00:44.8]} 41. Nc5 {[%clk 0:01:01.5]} 41... a5 {[%clk 0:00:44.8]} 42. Kc4
{[%clk 0:01:01.3]} 42... Rh2 {[%clk 0:00:43.9]} 43. Nb3 {[%clk 0:01:00.3]} 43...
Rxh3 {[%clk 0:00:44.8]} 44. Nxa5 {[%clk 0:00:59.2]} 44... Rxf3 {[%clk
0:00:45.1]} 0-1

[Event "Late-Titled-Tuesday-Blitz-January-23-2024"]
[Site "Chess.com"]
[Date "2024.01.23"]
[Round "1"]
[White "ImportedItalianMaple"]
[Black "sofaceindisguise"]
[Result "0-1"]
[WhiteElo "2430"]
[BlackElo "2762"]
[TimeControl "180+1"]
[EndTime "14:06:07 PST"]
[Termination "sofaceindisguise won by resignation"]

1. e4 {[%clk 0:03:00.9]} 1... c5 {[%clk 0:02:59.5]} 2. Nf3 {[%clk 0:03:00.1]}
2... Nc6 {[%clk 0:03:00]} 3. Bb5 {[%clk 0:02:45.2]} 3... e6 {[%clk 0:03:00.1]}
4. Bxc6 {[%clk 0:02:44.2]} 4... bxc6 {[%clk 0:03:00.1]} 5. b3 {[%clk 0:02:43.4]}
5... Ne7 {[%clk 0:03:00.4]} 6. Bb2 {[%clk 0:02:43.4]} 6... Ng6 {[%clk 0:03:01]}
7. O-O {[%clk 0:02:42.9]} 7... f6 {[%clk 0:02:59.5]} 8. e5 {[%clk 0:02:39.6]}
8... Be7 {[%clk 0:02:56.8]} 9. d3 {[%clk 0:02:38.3]} 9... O-O {[%clk 0:02:57.2]}
10. Nbd2 {[%clk 0:02:33.2]} 10... fxe5 {[%clk 0:02:57.2]} 11. Nxe5 {[%clk
0:02:33]} 11... Nxe5 {[%clk 0:02:55.9]} 12. Bxe5 {[%clk 0:02:32.6]} 12... d6
{[%clk 0:02:56.2]} 13. Bg3 {[%clk 0:02:28.1]} 13... e5 {[%clk 0:02:53.2]} 14.
Re1 {[%clk 0:02:23.2]} 14... Be6 {[%clk 0:02:52.4]} 15. c4 {[%clk 0:02:22.6]}
15... Qd7 {[%clk 0:02:52.6]} 16. h3 {[%clk 0:02:18.3]} 16... Rf7 {[%clk
0:02:52.9]} 17. Ne4 {[%clk 0:02:16.4]} 17... Raf8 {[%clk 0:02:53.4]} 18. Qd2
{[%clk 0:02:16.5]} 18... h6 {[%clk 0:02:53.6]} 19. a3 {[%clk 0:02:10]} 19... h5
{[%clk 0:02:20]} 20. Ng5 {[%clk 0:02:02.5]} 20... Bxg5 {[%clk 0:02:19.5]} 21.
Qxg5 {[%clk 0:02:03.2]} 21... Bf5 {[%clk 0:02:17.7]} 22. Qxh5 {[%clk 0:01:56.9]}
22... Bxd3 {[%clk 0:02:17.6]} 23. Rad1 {[%clk 0:01:48.2]} 23... e4 {[%clk
0:02:06.1]} 24. b4 {[%clk 0:01:42.3]} 24... cxb4 {[%clk 0:02:04.3]} 25. axb4
{[%clk 0:01:43.2]} 25... d5 {[%clk 0:02:02.7]} 26. c5 {[%clk 0:01:07]} 26... d4
{[%clk 0:01:58.5]} 27. Bd6 {[%clk 0:00:54.3]} 27... Re8 {[%clk 0:01:56.7]} 28.
f3 {[%clk 0:00:43.9]} 28... exf3 {[%clk 0:01:53.9]} 29. gxf3 {[%clk 0:00:32.3]}
29... Rxe1+ {[%clk 0:01:47.4]} 30. Rxe1 {[%clk 0:00:32.8]} 30... Bf5 {[%clk
0:01:44]} 31. Kh2 {[%clk 0:00:21.5]} 31... d3 {[%clk 0:01:43.9]} 32. Qg5 {[%clk
0:00:18.1]} 32... Bxh3 {[%clk 0:01:37.6]} 33. Rd1 {[%clk 0:00:16.2]} 33... Bf5
{[%clk 0:01:36.8]} 34. Rd2 {[%clk 0:00:14.9]} 34... Qe6 {[%clk 0:01:36.8]} 35.
Rg2 {[%clk 0:00:15.2]} 35... Qf6 {[%clk 0:01:25.3]} 36. Qg3 {[%clk 0:00:14]}
36... Qh6+ {[%clk 0:01:23.1]} 37. Kg1 {[%clk 0:00:14.4]} 37... d2 {[%clk
0:01:22.7]} 0-1